bitfinex/quotes_BTCUSD_20241211
["timestamp","ask_amount","ask_price","bid_price","bid_amount"]
[1733928925945,0.0004,99549.0,99548.0,0.29769283]
[1733928926370,0.0014,99549.0,99548.0,0.29769283]
[1733928926575,0.201306,99549.0,99548.0,0.29769283]
[1733928926774,0.22256423,99549.0,99548.0,0.14780221]
[1733928926999,0.30963124,99549.0,99548.0,0.14780221]
[1733928927203,0.10572524,99549.0,99540.0,0.14788811]
[1733928927541,0.10572524,99549.0,99540.0,0.00025046]
[1733928927542,0.350922,99541.0,99540.0,0.00025046]
[1733928927742,0.45624724,99541.0,99540.0,3.3e-07]
[1733928927951,0.45624724,99541.0,99510.0,0.01975307]
[1733928927952,0.200982,99511.0,99510.0,0.01975307]
[1733928928199,0.200982,99511.0,99504.0,0.14989062]
[1733928928200,0.200994,99505.0,99504.0,0.29769283]
[1733928928407,0.200996,99504.0,99493.0,0.19679062]
[1733928928618,0.201017,99494.0,99493.0,0.14989062]
[1733928928819,0.201017,99494.0,99478.0,0.14780221]
[1733928928820,0.201047,99479.0,99478.0,0.14780221]
[1733928929020,0.201047,99479.0,99472.0,0.14780221]
[1733928929021,0.201059,99473.0,99472.0,0.14780221]
[1733928929224,0.201059,99473.0,99472.0,0.29769283]
[1733928929425,0.201059,99473.0,99467.0,0.14780221]
[1733928929426,0.30638424,99473.0,99467.0,0.14780221]
[1733928929631,0.201063,99471.0,99467.0,0.14780221]
[1733928929845,0.201063,99471.0,99466.0,0.14989062]
[1733928929846,0.30638824,99471.0,99470.0,0.0006345]
[1733928930084,0.45638824,99471.0,99470.0,0.0006345]
[1733928930856,0.45638824,99471.0,99470.0,5e-07]
[1733928930857,0.48852775,99471.0,99470.0,5e-07]
[1733928931111,0.1,99464.0,99440.0,8.59e-05]
[1733928931361,0.351124,99441.0,99440.0,8.59e-05]
[1733928931590,0.69240124,99441.0,99440.0,8.59e-05]
[1733928931832,0.45644924,99441.0,99440.0,8.59e-05]
[1733928932881,0.45644924,99441.0,99440.0,0.00025026]
[1733928933185,0.46571326,99441.0,99440.0,0.00025026]
[1733928933693,0.47471326,99441.0,99440.0,0.00025026]
[1733928933969,0.46571326,99441.0,99440.0,0.00025026]
[1733928934548,0.48071326,99441.0,99440.0,0.00025026]
[1733928934730,0.47171326,99441.0,99440.0,0.00025026]
[1733928935000,0.47471326,99441.0,99440.0,0.00025026]
[1733928935276,0.47171326,99441.0,99440.0,0.00025026]
[1733928935743,0.46571326,99441.0,99440.0,0.00025026]
[1733928936543,0.47471326,99441.0,99440.0,0.00025026]
[1733928936843,0.57550789,99441.0,99440.0,0.00025026]
[1733928937099,0.57550789,99441.0,99420.0,8.59e-05]
[1733928937100,0.1,99440.0,99420.0,8.59e-05]
[1733928937379,0.1,99440.0,99430.0,0.00025022]
[1733928937380,0.47946924,99431.0,99430.0,0.00025022]
[1733928937658,0.47957862,99431.0,99430.0,0.00025022]
[1733928938104,0.87093662,99431.0,99430.0,0.00025022]
[1733928938107,0.71159862,99431.0,99430.0,0.00025022]
[1733928938588,0.71379641,99431.0,99430.0,0.00025022]
[1733928939383,0.72291235,99431.0,99430.0,0.00025022]
[1733928940737,0.50689235,99431.0,99430.0,2.2e-07]
[1733928941286,0.50689235,99431.0,99420.0,8.59e-05]
[1733928941287,0.301164,99421.0,99420.0,9e-07]
[1733928941291,0.1,99411.0,99391.0,0.0004]
[1733928941518,0.1,99411.0,99348.0,0.15]
[1733928941519,0.15,99381.0,99371.0,0.14577712]
[1733928941788,2.56744324,99381.0,99371.0,0.0004]
[1733928942034,1.35790524,99381.0,99380.0,0.00014051]
[1733928942276,0.65090324,99381.0,99380.0,0.00014051]
[1733928942817,0.26442661,99381.0,99380.0,0.00014051]
[1733928943397,0.26442661,99381.0,99371.0,0.0004]
[1733928943398,0.351263,99372.0,99371.0,0.0004]
[1733928943697,0.351263,99372.0,99370.0,8e-07]
[1733928943698,0.15,99371.0,99370.0,8e-07]
[1733928943927,0.15,99371.0,99345.0,0.14537712]
[1733928943928,0.351304,99352.0,99345.0,0.14537712]
[1733928944185,0.45662924,99352.0,99351.0,0.00094853]
[1733928944538,0.45662924,99352.0,99351.0,0.00590295]
[1733928945063,2.19912224,99352.0,99351.0,0.00094853]
[1733928945352,2.19912224,99352.0,99350.0,0.81851033]
[1733928945353,0.15462288,99351.0,99350.0,0.81851033]
[1733928945600,3.2817662,99351.0,99350.0,0.79837933]
[1733928945861,3.1643742,99351.0,99350.0,0.80333686]
[1733928946129,1.61149703,99351.0,99350.0,0.80333686]
[1733928946420,1.34930003,99351.0,99350.0,0.80333686]
[1733928946659,1.35392291,99351.0,99350.0,0.70268186]
[1733928947203,1.45172512,99351.0,99350.0,0.70268186]
[1733928947438,1.32532891,99351.0,99350.0,0.56079629]
[1733928947716,1.4214322,99351.0,99350.0,0.56079629]
[1733928947935,1.4394322,99351.0,99350.0,0.56079629]
[1733928948176,1.4304322,99351.0,99350.0,0.33337621]
[1733928948424,1.46757752,99351.0,99350.0,0.08730195]
[1733928948676,1.45377752,99351.0,99350.0,0.06574442]
[1733928948909,1.46277752,99351.0,99350.0,0.04890832]
[1733928949149,1.46277752,99351.0,99340.0,8.59e-05]
[1733928949150,0.30814667,99341.0,99340.0,8.59e-05]
[1733928949375,0.63741878,99341.0,99340.0,8.59e-05]
[1733928949593,0.70069824,99341.0,99340.0,8.59e-05]
[1733928949814,0.55808124,99341.0,99340.0,8.59e-05]
[1733928950286,0.59724723,99341.0,99340.0,9e-07]
[1733928950520,0.59724723,99341.0,99330.0,7e-07]
[1733928950521,0.25682067,99331.0,99330.0,7e-07]
[1733928950734,0.42809638,99331.0,99330.0,7e-07]
[1733928950970,0.4604417,99331.0,99330.0,7e-07]
[1733928951188,0.4834417,99331.0,99330.0,7e-07]
[1733928951399,0.4874757,99331.0,99330.0,7e-07]
[1733928951824,0.27832524,99331.0,99330.0,7e-07]
[1733928952918,0.29638361,99331.0,99330.0,7e-07]
[1733928953128,0.28738361,99331.0,99330.0,7e-07]
[1733928953349,0.28138361,99331.0,99330.0,7e-07]
[1733928953790,0.27238361,99331.0,99330.0,7e-07]
[1733928954099,0.37120953,99331.0,99330.0,7e-07]
[1733928954700,0.40355485,99331.0,99330.0,7e-07]
[1733928954925,0.42875264,99331.0,99330.0,7e-07]
[1733928955142,0.39640732,99331.0,99330.0,7e-07]
[1733928955612,0.39420953,99331.0,99330.0,7e-07]
[1733928956112,0.37120953,99331.0,99330.0,7e-07]
[1733928956334,0.28138361,99331.0,99330.0,7e-07]
[1733928957667,0.351367,99321.0,99320.0,8.56e-05]
[1733928957897,0.45669224,99321.0,99320.0,8.56e-05]
[1733928958117,0.50676226,99321.0,99320.0,8.56e-05]
[1733928958342,2.62624326,99321.0,99320.0,8.56e-05]
[1733928958556,2.27669626,99321.0,99320.0,8.56e-05]
[1733928958766,0.71543024,99321.0,99320.0,8.56e-05]
[1733928958995,0.58545224,99321.0,99320.0,8.56e-05]
[1733928959175,0.61416162,99321.0,99320.0,0.00014081]
[1733928959888,0.6296016,99321.0,99320.0,0.00014081]
[1733928960104,0.71269806,99321.0,99320.0,0.00014081]
[1733928961227,0.69628106,99321.0,99320.0,0.00014081]
[1733928964772,0.58393806,99321.0,99320.0,8.1e-07]
[1733928965021,4.60989506,99321.0,99320.0,8.1e-07]
[1733928965238,4.60989506,99321.0,99300.0,8.59e-05]
[1733928965239,0.023,99310.0,99300.0,9e-07]
[1733928965447,0.023,99310.0,99288.0,0.0484]
[1733928965448,0.351432,99289.0,99288.0,0.0484]
[1733928965658,0.45675724,99289.0,99286.0,0.0753]
[1733928965873,0.351432,99289.0,99288.0,0.0058419]
[1733928966080,0.45675724,99289.0,99288.0,0.0001645]
[1733928966293,0.52586639,99289.0,99288.0,0.0001645]
[1733928966510,0.45675724,99289.0,99288.0,0.0001645]
[1733928966721,0.46175724,99289.0,99288.0,0.0001645]
[1733928967357,0.47103367,99289.0,99288.0,0.0001645]
[1733928967582,0.47403367,99289.0,99288.0,0.0001645]
[1733928968010,0.47103367,99289.0,99288.0,0.0001645]
[1733928968225,0.46603367,99289.0,99288.0,0.0001645]
[1733928968651,0.47203367,99289.0,99288.0,0.0001645]
[1733928968876,0.31603367,99289.0,99288.0,0.29334383]
[1733928969113,0.201349,99330.0,99300.0,0.14537712]
[1733928969336,0.201349,99330.0,99295.0,0.19540221]
[1733928969337,0.10532524,99319.0,99312.0,0.14537712]
[1733928969615,0.201383,99313.0,99312.0,0.14537712]
[1733928969883,0.30670824,99313.0,99312.0,0.14537712]
[1733928970390,0.30670824,99313.0,99306.0,0.14780221]
[1733928970391,0.201395,99307.0,99306.0,0.14780221]
[1733928970654,0.45672024,99307.0,99306.0,0.29317933]
[1733928971179,0.351395,99307.0,99306.0,0.29317933]
[1733928971693,0.15,99307.0,99306.0,0.37810083]
[1733928972202,0.156,99307.0,99306.0,0.37810083]
[1733928972443,0.15,99307.0,99306.0,0.37810083]
[1733928972679,0.155,99307.0,99306.0,0.37810083]
[1733928973439,0.157,99307.0,99306.0,0.37810083]
[1733928973916,0.16644862,99307.0,99306.0,0.37810083]
[1733928975047,0.24350988,99307.0,99306.0,0.37810083]
[1733928975496,0.34883512,99307.0,99306.0,0.37810083]
[1733928976339,0.27177386,99307.0,99306.0,0.37810083]
[1733928977012,0.16644862,99307.0,99306.0,0.37810083]
[1733928977671,0.16644862,99307.0,99306.0,0.23272371]
[1733928977891,0.16644862,99307.0,99306.0,0.37810083]
[1733928980139,0.27177386,99307.0,99306.0,0.0056215]
[1733928980362,0.33922925,99307.0,99306.0,0.0056215]
[1733928980572,0.3706373,99307.0,99306.0,0.14537712]
[1733928981221,0.30318191,99307.0,99306.0,0.14537712]
[1733928981648,0.30318191,99307.0,99306.0,0.15112359]
[1733928981862,0.29618191,99307.0,99306.0,0.15112359]
[1733928982294,0.30618191,99307.0,99306.0,0.15112359]
[1733928982516,0.29918191,99307.0,99306.0,0.15112359]
[1733928982768,0.33863946,99307.0,99306.0,0.15112359]
[1733928983014,0.34163946,99307.0,99306.0,0.00574647]
[1733928983243,0.34163946,99307.0,99303.0,0.14537712]
[1733928983494,0.38280505,99306.0,99305.0,0.29317933]
[1733928983743,0.1169279,99316.0,99305.0,0.29317933]
[1733928983744,0.20162881,99330.0,99305.0,0.41667933]
[1733928983937,0.00027881,99330.0,99329.0,0.41667933]
[1733928984374,0.000172,99360.0,99359.0,0.29317933]
[1733928984839,0.01849528,99360.0,99359.0,0.29317933]
[1733928985053,0.01849528,99360.0,99359.0,0.29905874]
[1733928985265,0.000172,99360.0,99359.0,0.29905874]
[1733928985494,0.00071918,99360.0,99359.0,0.29905874]
[1733928985720,0.0499,99366.0,99365.0,0.29317933]
[1733928986167,0.0499,99366.0,99365.0,0.34564013]
[1733928986373,0.0001718,99410.0,99381.0,0.29317933]
[1733928986374,0.01842852,99382.0,99381.0,0.29317933]
[1733928986841,0.201204,99402.0,99401.0,0.14780221]
[1733928987294,0.30652924,99402.0,99401.0,0.0057492]
[1733928988632,0.46552924,99402.0,99401.0,0.0057492]
[1733928989057,0.46552924,99402.0,99387.0,0.14780221]
[1733928989058,0.201221,99393.0,99387.0,0.14780221]
[1733928989274,0.25532524,99392.0,99391.0,0.14780221]
[1733928989510,0.45654824,99392.0,99385.0,0.14780221]
[1733928989729,0.201219,99394.0,99375.0,0.14537712]
[1733928989730,0.351249,99379.0,99375.0,0.14537712]
[1733928989954,0.45657424,99379.0,99378.0,0.33977933]
[1733928990823,0.46590357,99379.0,99378.0,0.33977933]
[1733928991899,0.46690357,99379.0,99378.0,0.33977933]
[1733928993010,0.46890357,99379.0,99378.0,0.33977933]
[1733928993253,0.46790357,99379.0,99378.0,0.33977933]
[1733928993473,0.46790357,99379.0,99347.0,0.15]
[1733928993474,0.351267,99370.0,99369.0,0.14537712]
[1733928993699,0.45659224,99370.0,99369.0,0.29317933]
[1733928993926,0.45659224,99370.0,99369.0,0.14537712]
[1733928994154,0.45659224,99370.0,99365.0,0.0792645]
[1733928994155,0.15,99369.0,99365.0,0.0001645]
[1733928994384,0.351276,99366.0,99365.0,0.0001645]
[1733928994599,0.45660124,99366.0,99365.0,0.0001645]
[1733928995681,0.46060124,99366.0,99365.0,0.0001645]
[1733928996155,0.45660124,99366.0,99365.0,0.0001645]
[1733928996461,0.52235281,99366.0,99365.0,0.0060253]
[1733928996727,0.52535281,99366.0,99365.0,0.0001645]
[1733928997044,0.46868185,99366.0,99365.0,0.0001645]
[1733928997260,0.46868185,99366.0,99365.0,0.34194383]
[1733928997261,0.01208061,99366.0,99365.0,0.34194383]
[1733928997767,0.01808061,99366.0,99365.0,0.34780463]
[1733928998012,0.00908061,99366.0,99365.0,0.34780463]
[1733928998275,0.01908061,99366.0,99365.0,0.20000242]
[1733928998500,0.01908061,99366.0,99365.0,0.0546253]
[1733928998501,0.3004875,99366.0,99365.0,0.0546253]
[1733928998771,0.25532524,99366.0,99365.0,0.0546253]
[1733928999033,0.25532524,99366.0,99365.0,0.0070253]
[1733928999034,0.25832524,99366.0,99365.0,0.0070253]
[1733928999304,0.28132524,99366.0,99365.0,0.0070253]
[1733928999543,0.28132524,99366.0,99365.0,0.0001645]
[1733928999805,0.3606244,99366.0,99365.0,0.0001645]
[1733929000369,0.25832524,99366.0,99365.0,0.0001645]
[1733929000559,0.25832524,99366.0,99365.0,0.29334383]
[1733929000560,0.11632524,99366.0,99365.0,0.29334383]
[1733929000801,0.003,99366.0,99365.0,0.37074383]
[1733929001038,0.012,99366.0,99365.0,0.42480463]
[1733929001511,0.402542,99369.0,99368.0,0.14780221]
[1733929001746,0.50786724,99369.0,99368.0,0.29317933]
[1733929001988,0.65786724,99369.0,99368.0,0.29903083]
[1733929002464,0.65786724,99369.0,99368.0,0.15365371]
[1733929003246,0.71551727,99369.0,99368.0,0.0058515]
[1733929003486,0.65886724,99369.0,99368.0,0.14780221]
[1733929003756,0.65886724,99369.0,99368.0,0.15365371]
[1733929004016,0.66186724,99369.0,99368.0,0.15365371]
[1733929004262,0.65886724,99369.0,99368.0,0.15365371]
[1733929004496,0.66786724,99369.0,99368.0,0.15365371]
[1733929004735,0.65886724,99369.0,99368.0,0.15365371]
[1733929005232,0.66786724,99369.0,99368.0,0.15365371]
[1733929005537,0.66686724,99369.0,99368.0,0.15365371]
[1733929005765,0.67186724,99369.0,99368.0,0.15365371]
[1733929006237,0.66686724,99369.0,99368.0,0.15365371]
[1733929006495,0.66186724,99369.0,99368.0,0.15365371]
[1733929006778,0.67086724,99369.0,99368.0,0.15365371]
[1733929007035,0.65786724,99369.0,99368.0,0.15365371]
[1733929007322,0.66586724,99369.0,99368.0,0.29903083]
[1733929007578,0.004,99369.0,99368.0,0.29903083]
[1733929007814,0.154,99369.0,99368.0,0.29903083]
[1733929008052,0.162,99369.0,99368.0,0.29903083]
[1733929008562,0.158,99369.0,99368.0,0.29903083]
[1733929008831,0.008,99369.0,99368.0,0.29903083]
[1733929009089,0.201213,99397.0,99396.0,0.14780221]
[1733929009385,0.10532524,99397.0,99396.0,0.33997933]
[1733929009638,0.201195,99406.0,99405.0,0.29317933]
[1733929009872,0.0001718,99410.0,99409.0,0.29317933]
[1733929009873,0.2013598,99410.0,99409.0,0.29317933]
[1733929010355,0.2013598,99410.0,99409.0,0.29890374]
[1733929010632,0.20152391,99410.0,99409.0,0.29890374]
[1733929010874,0.00033591,99410.0,99409.0,0.29890374]
[1733929011630,0.00433591,99410.0,99409.0,0.29890374]
[1733929011875,0.00433591,99410.0,99409.0,0.29317933]
[1733929011876,0.10966115,99410.0,99409.0,0.29317933]
[1733929012356,0.25966115,99410.0,99409.0,0.15352662]
[1733929012598,0.26066115,99410.0,99409.0,0.15352662]
[1733929012862,0.25666115,99410.0,99409.0,0.15352662]
[1733929013095,0.25766115,99410.0,99409.0,0.15352662]
[1733929013597,0.26066115,99410.0,99409.0,0.15352662]
[1733929015565,0.32696307,99410.0,99409.0,0.00572441]
[1733929015801,0.35449445,99410.0,99409.0,0.00572441]
[1733929016065,0.35449445,99410.0,99396.0,0.14780221]
[1733929016066,0.351189,99409.0,99396.0,0.14780221]
[1733929016332,0.201213,99397.0,99396.0,0.14780221]
[1733929016569,0.201213,99397.0,99382.0,0.0454]
[1733929016570,0.201252,99378.0,99375.0,0.14537712]
[1733929016851,0.201252,99378.0,99377.0,0.14780221]
[1733929017610,0.21977196,99378.0,99377.0,0.14780221]
[1733929017849,0.22377196,99378.0,99377.0,0.14780221]
[1733929018081,0.22366315,99378.0,99377.0,0.14780221]
[1733929018313,0.37366315,99378.0,99377.0,0.14780221]
[1733929018552,0.37306315,99378.0,99377.0,0.14780221]
[1733929018793,0.48781714,99378.0,99377.0,0.14780221]
[1733929019033,0.48781714,99378.0,99377.0,0.29317933]
[1733929019300,0.46740599,99378.0,99377.0,0.29317933]
[1733929019547,0.47140599,99378.0,99377.0,0.29317933]
[1733929020017,0.47080599,99378.0,99377.0,0.29317933]
[1733929021767,0.47020599,99378.0,99377.0,0.29317933]
[1733929022081,0.006,99378.0,99377.0,0.29317933]
[1733929022343,0.17511162,99420.0,99409.0,0.29317933]
[1733929022583,0.10549704,99410.0,99409.0,0.41727933]
[1733929023061,0.10566115,99410.0,99409.0,0.41727933]
[1733929023636,0.00016411,99410.0,99409.0,0.41727933]
[1733929023873,0.00116411,99410.0,99409.0,0.41727933]
[1733929024108,0.0001718,99430.0,99409.0,0.41727933]
[1733929024109,0.02042501,99435.0,99434.0,0.29317933]
[1733929024356,0.22408322,99470.0,99448.0,0.49428933]
[1733929024357,0.0001718,99470.0,99448.0,0.49428933]
[1733929024607,0.0001718,99470.0,99448.0,0.76838933]
[1733929024851,0.0001718,99470.0,99448.0,0.91838933]
[1733929024852,0.00056453,99449.0,99448.0,0.91838933]
[1733929025098,0.00056453,99449.0,99448.0,0.77415048]
[1733929025338,0.0001718,99470.0,99459.0,0.29317933]
[1733929025339,0.00013633,99460.0,99459.0,0.29317933]
[1733929025879,0.00068466,99460.0,99459.0,0.29890643]
[1733929026617,8.466e-05,99460.0,99459.0,0.29890643]
[1733929026873,8.466e-05,99460.0,99459.0,0.30190643]
[1733929027136,8.466e-05,99460.0,99459.0,0.29890643]
[1733929027431,8.466e-05,99460.0,99459.0,0.29990643]
[1733929028132,0.14948466,99462.0,99461.0,0.29317933]
[1733929028373,0.0001716,99480.0,99468.0,0.29317933]
[1733929028887,0.0001716,99480.0,99468.0,0.29887857]
[1733929029124,0.0001434,99480.0,99479.0,0.14780221]
[1733929029368,0.0001434,99480.0,99479.0,0.29317933]
[1733929029600,0.0001434,99480.0,99479.0,0.29884454]
[1733929030302,0.201031,99487.0,99479.0,0.29884454]
[1733929030537,0.351031,99487.0,99486.0,0.29317933]
[1733929031089,0.0004,99489.0,99488.0,0.29317933]
[1733929031581,0.0004,99489.0,99488.0,0.29881669]
[1733929032538,0.0054,99489.0,99488.0,0.29881669]
[1733929033236,0.0004,99489.0,99488.0,0.29881669]
[1733929033479,0.0034,99489.0,99488.0,0.29881669]
[1733929033708,0.0034,99489.0,99488.0,0.29317933]
[1733929033966,0.0004,99489.0,99488.0,0.29881669]
[1733929036099,0.0004,99489.0,99488.0,0.29317933]
[1733929036607,0.0004,99489.0,99488.0,0.29981669]
[1733929036844,0.0004,99489.0,99488.0,0.30081669]
[1733929037436,0.0004,99489.0,99488.0,0.29981669]
[1733929037687,0.0004,99489.0,99488.0,0.30081669]
[1733929037917,0.0004,99489.0,99488.0,0.29981669]
[1733929038179,0.0004,99489.0,99488.0,0.29881669]
[1733929039440,0.0004,99489.0,99488.0,0.30081669]
[1733929040198,0.0004,99489.0,99488.0,0.30181669]
[1733929040708,0.0004,99489.0,99488.0,0.30081669]
[1733929040953,0.0004,99489.0,99488.0,0.30181669]
[1733929041221,0.0004,99489.0,99488.0,0.30581669]
[1733929041747,0.01257104,99489.0,99488.0,0.30581669]
[1733929041994,0.0004,99489.0,99488.0,0.30581669]
[1733929042243,0.0004,99489.0,99488.0,0.30017933]
[1733929042723,0.0004,99489.0,99488.0,0.30281669]
[1733929043219,0.0004,99489.0,99488.0,0.29981669]
[1733929043485,0.10572524,99489.0,99488.0,0.29981669]
[1733929043749,0.10572524,99489.0,99488.0,0.29881669]
[1733929044232,0.0004,99489.0,99488.0,0.29881669]
[1733929044508,0.0004,99489.0,99488.0,0.34301669]
[1733929044758,0.0004,99489.0,99488.0,0.34501669]
[1733929044984,0.0004,99489.0,99488.0,0.34301669]
[1733929045230,0.0034,99489.0,99488.0,0.34301669]
[1733929045468,0.0004,99489.0,99488.0,0.34301669]
[1733929046026,0.0004,99489.0,99488.0,0.34801669]
[1733929046027,0.0024,99489.0,99488.0,0.34801669]
[1733929046552,0.0004,99489.0,99488.0,0.43111669]
[1733929047037,0.0004,99489.0,99488.0,0.63514569]
[1733929047315,0.200957,99524.0,99508.0,0.28817933]
[1733929047586,0.200955,99525.0,99508.0,0.28817933]
[1733929047852,0.200955,99525.0,99508.0,0.29375484]
[1733929048376,0.00931115,99525.0,99508.0,0.29375484]
[1733929048581,0.0004,99529.0,99508.0,0.29575484]
[1733929048854,0.00056446,99509.0,99508.0,0.29575484]
[1733929049371,0.00056446,99509.0,99508.0,0.29475484]
[1733929049690,0.00056446,99509.0,99508.0,0.29875484]
[1733929049862,0.00056446,99509.0,99508.0,0.49285484]
[1733929050106,0.00056446,99509.0,99508.0,0.59818008]
[1733929050325,0.00056446,99509.0,99508.0,0.60118008]
[1733929050837,0.00056446,99509.0,99508.0,0.59418008]
[1733929051074,0.00156446,99509.0,99508.0,0.60318008]
[1733929051296,0.00056446,99509.0,99508.0,0.59718008]
[1733929051767,0.00156446,99509.0,99508.0,0.60618008]
[1733929052264,0.00156446,99509.0,99508.0,0.60318008]
[1733929052536,0.00156446,99509.0,99508.0,0.35285484]
[1733929052537,0.00256446,99509.0,99508.0,0.35285484]
[1733929053786,0.00256446,99509.0,99508.0,0.21247772]
[1733929054033,0.00256446,99509.0,99508.0,0.35285484]
[1733929057054,0.00256446,99509.0,99508.0,0.33508977]
[1733929058172,0.00256446,99509.0,99508.0,0.48508977]
[1733929058403,0.00256446,99509.0,99508.0,0.33508977]
[1733929058639,0.00256446,99509.0,99508.0,0.48508977]
[1733929059096,0.00256446,99509.0,99508.0,0.33508977]
[1733929059371,0.00256446,99509.0,99508.0,0.15995263]
[1733929059613,0.16206144,99509.0,99508.0,0.28998977]
[1733929059843,0.02096868,99509.0,99508.0,0.28998977]
[1733929060063,0.00256446,99509.0,99508.0,0.28998977]
[1733929060523,0.00156446,99509.0,99508.0,0.28098977]
[1733929060747,0.00156446,99509.0,99508.0,0.28498977]
[1733929061242,0.00156446,99509.0,99508.0,0.28098977]
[1733929061464,0.00156446,99509.0,99508.0,0.28498977]
[1733929061705,0.00156446,99509.0,99508.0,0.28098977]
[1733929061922,0.00156446,99509.0,99508.0,0.27898977]
[1733929062159,0.00056446,99509.0,99508.0,0.27898977]
[1733929062372,0.00056446,99509.0,99508.0,0.27998977]
[1733929062838,0.00056446,99509.0,99508.0,0.27898977]
[1733929063086,0.00056446,99509.0,99508.0,0.43098977]
[1733929065349,0.00056446,99509.0,99508.0,0.14061265]
[1733929065574,0.00056446,99509.0,99508.0,0.28098977]
[1733929065805,0.00056446,99509.0,99508.0,0.43098977]
[1733929068774,0.00056446,99509.0,99508.0,0.53631501]
[1733929069707,0.00056446,99509.0,99508.0,0.76231501]
[1733929069926,0.00056446,99509.0,99508.0,0.80371501]
[1733929070155,0.00156446,99509.0,99508.0,0.81271501]
[1733929070382,0.00156446,99509.0,99508.0,0.80371501]
[1733929070639,0.00056446,99509.0,99508.0,0.80371501]
[1733929070873,0.00156446,99509.0,99508.0,0.81271501]
[1733929071111,0.00156446,99509.0,99508.0,0.80371501]
[1733929071112,0.00056446,99509.0,99508.0,0.80371501]
[1733929071329,0.00256446,99509.0,99508.0,0.53867787]
[1733929071565,0.00256446,99509.0,99508.0,0.81871501]
[1733929071792,0.00156446,99509.0,99508.0,0.81271501]
[1733929072046,0.00256446,99509.0,99508.0,0.81871501]
[1733929072287,0.00256446,99509.0,99508.0,0.16095263]
[1733929072288,0.00233532,99509.0,99508.0,0.16095263]
[1733929072518,0.00233532,99509.0,99508.0,0.29098977]
[1733929072773,0.00233532,99509.0,99508.0,0.58541426]
[1733929073235,0.00233532,99509.0,99508.0,0.57641426]
[1733929073236,0.00133532,99509.0,99508.0,0.57641426]
[1733929073471,0.00233532,99509.0,99508.0,0.58541426]
[1733929073686,0.00133532,99509.0,99508.0,0.6817395]
[1733929074139,0.00233532,99509.0,99508.0,0.6907395]
[1733929074832,0.00033532,99509.0,99508.0,0.6757395]
[1733929075048,0.00133532,99509.0,99508.0,0.6807395]
[1733929075573,0.00033532,99509.0,99508.0,0.6757395]
[1733929076042,0.00133532,99509.0,99508.0,0.58400418]
[1733929076304,0.00233532,99509.0,99508.0,0.59300418]
[1733929076802,0.00233532,99509.0,99508.0,0.58341426]
[1733929077034,0.00233532,99509.0,99508.0,0.28341426]
[1733929077966,0.00233532,99509.0,99508.0,0.43341426]
[1733929078662,0.00233532,99509.0,99508.0,0.28341426]
[1733929080240,0.00233532,99509.0,99508.0,0.15337712]
[1733929080496,0.00233532,99509.0,99508.0,0.28341426]
[1733929080723,0.00233532,99509.0,99508.0,0.9356275]
[1733929080951,0.0004,99529.0,99528.0,0.57041426]
[1733929081168,0.0004,99529.0,99528.0,0.675222]
[1733929081654,0.0004,99529.0,99528.0,1.00267]
[1733929082338,0.0004,99529.0,99528.0,1.02249957]
[1733929082555,0.0014,99529.0,99528.0,1.02749957]
[1733929083046,0.0014,99529.0,99528.0,1.03349957]
[1733929083275,0.0014,99529.0,99528.0,1.02749957]
[1733929083527,0.0014,99529.0,99528.0,1.03649957]
[1733929083972,0.0014,99529.0,99528.0,0.93117433]
[1733929084193,0.0014,99529.0,99528.0,0.88177433]
[1733929084648,0.0014,99529.0,99528.0,0.98709957]
[1733929085311,0.0004,99529.0,99528.0,0.98209957]
[1733929085526,0.0014,99529.0,99528.0,0.98809957]
[1733929086892,0.0004,99529.0,99528.0,0.98209957]
[1733929087120,0.0014,99529.0,99528.0,0.99009957]
[1733929088502,0.00119519,99576.0,99528.0,0.99009957]
[1733929088503,0.0001716,99580.0,99579.0,0.13985962]
[1733929088739,0.0001716,99580.0,99579.0,0.26989676]
[1733929089215,0.0001716,99580.0,99579.0,0.34919676]
[1733929089453,0.0001716,99580.0,99579.0,0.604522]
[1733929089689,0.0001716,99580.0,99579.0,0.62420453]
[1733929089936,0.00071982,99580.0,99579.0,0.62420453]
[1733929090212,0.00171982,99580.0,99579.0,0.34234491]
[1733929090410,0.00171982,99580.0,99579.0,0.62420453]
[1733929090630,0.00071982,99580.0,99579.0,0.62420453]
[1733929090861,0.00071982,99580.0,99579.0,0.63220453]
[1733929091078,0.00071982,99580.0,99579.0,0.63020453]
[1733929091297,0.00071982,99580.0,99579.0,0.78020453]
[1733929091528,0.00071982,99580.0,99579.0,0.77420453]
[1733929092008,0.00071982,99580.0,99579.0,0.78020453]
[1733929092698,0.00067982,99580.0,99579.0,0.78020453]
[1733929092923,0.00067982,99580.0,99579.0,0.78920453]
[1733929093149,0.00067982,99580.0,99579.0,0.78020453]
[1733929093391,0.00067982,99580.0,99579.0,0.77420453]
[1733929093629,0.01244551,99599.0,99598.0,0.26989676]
[1733929093860,0.00283062,99599.0,99598.0,0.806122]
[1733929094080,0.00299504,99599.0,99598.0,0.806122]
[1733929095743,0.00299504,99599.0,99598.0,0.815122]
[1733929095960,0.00299504,99599.0,99598.0,0.83493262]
[1733929096661,0.00299504,99599.0,99598.0,0.84393262]
[1733929096896,0.00299504,99599.0,99598.0,0.85353309]
[1733929097367,0.00299504,99599.0,99598.0,0.84393262]
[1733929098534,0.00299504,99599.0,99598.0,0.25004776]
[1733929098757,0.00299504,99599.0,99598.0,0.28789676]
[1733929099463,0.00299504,99599.0,99598.0,0.26989676]
[1733929099715,0.00299504,99599.0,99598.0,0.27689676]
[1733929099957,0.00299504,99599.0,99598.0,0.28589676]
[1733929100184,0.00299504,99599.0,99598.0,0.27889676]
[1733929100641,0.00299504,99599.0,99598.0,0.27389676]
[1733929101100,0.00299504,99599.0,99598.0,0.26989676]
[1733929101325,0.00299504,99599.0,99598.0,0.27289676]
[1733929102015,0.00299504,99599.0,99598.0,0.28089676]
[1733929102257,0.00299504,99599.0,99598.0,0.27289676]
[1733929102717,0.00299504,99599.0,99598.0,0.28089676]
[1733929103411,0.00299504,99599.0,99598.0,0.70700376]
[1733929105467,0.00299504,99599.0,99598.0,0.35619676]
[1733929105692,0.00299504,99599.0,99598.0,0.50619676]
[1733929106380,0.00299504,99599.0,99598.0,0.35619676]
[1733929106603,0.00299504,99599.0,99598.0,0.28089676]
[1733929107267,0.00299504,99599.0,99598.0,0.27789676]
[1733929107722,0.00299504,99599.0,99598.0,0.28089676]
[1733929107953,0.0001712,99600.0,99599.0,0.33686458]
[1733929108163,0.0001712,99600.0,99599.0,0.46690172]
[1733929109302,0.0001712,99600.0,99599.0,0.47490172]
[1733929109761,0.0001712,99600.0,99599.0,0.20500496]
[1733929109981,0.2009742,99600.0,99599.0,0.47490172]
[1733929110223,0.45629944,99600.0,99599.0,0.20500496]
[1733929110660,0.47929944,99600.0,99599.0,0.20500496]
[1733929110887,0.47929944,99600.0,99599.0,0.20700496]
[1733929111117,0.48895031,99600.0,99599.0,0.20700496]
[1733929111386,0.48895031,99600.0,99561.0,0.0768]